fUSD/lending_fUSD_20241015
["ID","MTS","AMOUNT","RATE_DAILY","PERIOD"]
[340284961,1729007437875,-9084.2900005,0.00011,2]
[340284962,1729007437887,-13724.235,0.00011,2]
[340284963,1729007438017,-1384.75,0.00011,2]
[340284964,1729007438028,-5915.5,0.00011,2]
[340284965,1729007438081,-11910.80471678,0.00011,2]
[340284966,1729007438093,-264.399938,0.00011,2]
[340284967,1729007438103,-1373.83926939,0.00011,2]
[340284968,1729007438115,-100002.92629669,0.00011,2]
[340284977,1729007439542,-1474.94368101,0.00011,2]
[340284978,1729007439554,-2292.942009,0.00011,2]
[340284979,1729007439805,-556.59359034,0.00011,2]
[340284980,1729007439817,-1080.68694146,0.00011,2]
[340284981,1729007439828,-1163.39,0.00011,2]
[340284982,1729007439840,-3315.074432,0.00011,2]
[340284983,1729007439902,-500.8463313,0.00011,2]
[340284994,1729007442798,-311500.0,0.00011,2]
[340284995,1729007442855,-139758.22803983,0.00011,2]
[340284996,1729007442867,-2620.0,0.00011,2]
[340284997,1729007442882,-7525.51564403,0.00011,2]
[340284998,1729007442960,-12648.50162918,0.00011,2]
[340284999,1729007442974,-644.9484743,0.00011,2]
[340285000,1729007442985,-12906.31139092,0.00011,2]
[340285045,1729007445517,-321236.36058776,0.00011,2]
[340285046,1729007445587,-6138.45779538,0.00011,2]
[340285047,1729007445606,-2576.5,0.00011,2]
[340285048,1729007445656,-264.06999864,0.00011,2]
[340285049,1729007445794,-1433.43806382,0.00011,2]
[340285050,1729007445868,-83.27580058,0.00011,2]
[340285055,1729007566970,1000.0,0.000215,40]
[340285056,1729007593365,2000.0,0.00027,120]
[340285057,1729007601731,1000.0,0.000215,40]
[340285058,1729007627623,1000.0,0.000215,40]
[340285059,1729007649357,1000.0,0.000215,40]
[340285060,1729007677184,1000.0,0.000215,40]
[340285061,1729007697972,1000.0,0.000215,40]
[340285062,1729007716743,508.82,9.847e-05,2]
[340285063,1729007723377,1000.0,0.000215,40]
[340285064,1729007753035,1000.0,0.000215,40]
[340285065,1729007774760,1000.0,0.000215,40]
[340285066,1729007802220,1000.0,0.000215,40]
[340285067,1729007842598,-300.0,0.00010889,2]
[340285068,1729007842625,-21059.0,0.0001089,2]
[340285069,1729007842647,-150.0,0.00010899,2]
[340285070,1729007842670,-184.60684504,0.000109,2]
[340285071,1729007842693,-7517.58320477,0.000109,2]
[340285072,1729007842717,-787.05237545,0.000109,2]
[340285073,1729007842739,-160.36941333,0.000109,2]
[340285074,1729007842760,-1176.65125936,0.000109,2]
[340285075,1729007842782,-2802.0804204,0.000109,2]
[340285076,1729007842805,-157.45,0.00010959,2]
[340285077,1729007842828,-176.58,0.00010959,2]
[340285078,1729007842850,-882.92,0.00010959,2]
[340285079,1729007842875,-500.0,0.00010973,2]
[340285080,1729007842897,-1000.0,0.00010999,2]
[340285081,1729007842921,-585.10679756,0.00010999,2]
[340285082,1729007842948,-24060.59968409,0.00011,2]
[340285083,1729007849655,1000.0,0.00027,60]
[340285084,1729007864054,5065.0,0.00027,60]
[340285085,1729007964012,1000.0,0.00027,60]
[340285086,1729008020047,193.11,9.326e-05,2]
[340285087,1729008191863,2000.0,0.00027,120]
[340285101,1729008211392,483.37,9.596e-05,2]
[340285105,1729008573578,-310.066,0.0001078,2]
[340285106,1729008573599,-176.578,0.0001078,2]
[340285107,1729008573620,-161.56026729,0.000109,2]
[340285108,1729008573642,-156.8,0.00010959,2]
[340285109,1729008573668,-300.0,0.00010999,2]
[340285110,1729008573690,-150.0,0.00010999,2]
[340285111,1729008573714,-1480925.27829698,0.00011,2]
[340285112,1729008573734,-253892.28225502,0.00011,2]
[340285113,1729008573799,500.0,0.00010973,2]
[340285114,1729008622451,-1298.5,0.00022137,30]
[340285115,1729008622481,-1298.5,0.00024721,30]
[340285116,1729008622509,-6499.92,0.000249,31]
[340285117,1729008622535,-6499.92,0.000249,31]
[340285118,1729008622564,-6499.92,0.000249,31]
[340285119,1729008622590,-6499.92,0.000249,31]
[340285120,1729008622616,-6499.92,0.000249,31]
[340285121,1729008622643,-6499.92,0.000249,31]
[340285122,1729008622670,-6499.92,0.000249,31]
[340285123,1729008622695,-6499.92,0.000249,31]
[340285124,1729008622720,-6499.92,0.000249,31]
[340285125,1729008622746,-6499.92,0.000249,31]
[340285126,1729008622771,-6499.92,0.000249,31]
[340285127,1729008622802,-6499.92,0.000249,31]
[340285128,1729008622828,-6499.92,0.000249,31]
[340285129,1729008622854,-6499.92,0.000249,31]
[340285130,1729008622879,-6499.92,0.000249,31]
[340285131,1729008622904,-6499.92,0.000249,31]
[340285132,1729008623011,-500.0,0.00024931,30]
[340285133,1729008623035,-511.25182861,0.00024931,30]
[340285134,1729008624045,-250.0,0.00025,30]
[340285135,1729008624083,-250.0,0.00025,30]
[340285136,1729008624121,-250.0,0.00025,30]
[340285137,1729008624160,-151.69556451,0.00025,40]
[340285138,1729008624359,-501.15069192,0.0002619,30]
[340285139,1729008624403,-6499.92,0.00027,31]
[340285140,1729008624431,-6499.92,0.00027,31]
[340285141,1729008624457,-6499.92,0.00027,31]
[340285142,1729008624481,-6499.92,0.00027,31]
[340285143,1729008624506,-6499.92,0.00027,31]
[340285144,1729008624529,-6499.92,0.00027,31]
[340285145,1729008624554,-6499.92,0.00027,31]
[340285146,1729008624579,-6499.92,0.00027,31]
[340285147,1729008624603,-6499.92,0.00027,31]
[340285148,1729008624628,-6499.92,0.00027,31]
[340285149,1729008624652,-6499.92,0.00027,31]
[340285150,1729008624679,-6499.92,0.00027,31]
[340285151,1729008624708,-6499.92,0.00027,31]
[340285152,1729008624737,-6499.92,0.00027,31]
[340285153,1729008624763,-6499.92,0.00027,31]
[340285154,1729008624793,-6499.92,0.00027,31]
[340285155,1729008624818,-6499.92,0.00027,31]
[340285156,1729008624843,-6499.92,0.00027,31]
[340285157,1729008624870,-6499.92,0.00027,31]
[340285158,1729008624895,-6499.92,0.00027,31]
[340285159,1729008624921,-6499.92,0.00027,31]
[340285160,1729008624948,-6499.92,0.00027,31]
[340285161,1729008624974,-6499.92,0.00027,31]
[340285162,1729008624999,-6499.92,0.00027,31]
[340285163,1729008625026,-1298.5,0.00027305,30]
[340285164,1729008625056,-205.15495817,0.00027397,60]
[340285165,1729008625082,-300.0,0.000274,120]
[340285166,1729008625105,-156.778265,0.000274,60]
[340285167,1729008625130,-150.0,0.00028,120]
[340285168,1729008625154,-1463.17227084,0.00028297,120]
[340285169,1729008625178,-1531.36380782,0.00029,30]
[340285170,1729008625202,-1800.0,0.00029,30]
[340285171,1729008625228,-6499.92,0.000292,31]
[340285172,1729008625252,-6499.92,0.000292,31]
[340285173,1729008625278,-6499.92,0.000292,31]
[340285174,1729008625304,-6499.92,0.000292,31]
[340285175,1729008625331,-6499.92,0.000292,31]
[340285176,1729008625355,-6499.92,0.000292,31]
[340285177,1729008625381,-6499.92,0.000292,31]
[340285178,1729008625405,-6499.92,0.000292,31]
[340285179,1729008625431,-6499.92,0.000292,31]
[340285180,1729008625457,-6499.92,0.000292,31]
[340285181,1729008625482,-6499.92,0.000292,31]
[340285182,1729008625507,-6499.92,0.000292,31]
[340285183,1729008625532,-6499.92,0.000292,31]
[340285184,1729008625559,-6499.92,0.000292,31]
[340285185,1729008625587,-6499.92,0.000292,31]
[340285186,1729008625613,-6499.92,0.000292,31]
[340285187,1729008625639,-6499.92,0.000292,31]
[340285188,1729008625665,-6499.92,0.000292,31]
[340285189,1729008625690,-6499.92,0.000292,31]
[340285190,1729008625715,-6499.92,0.000292,31]
[340285191,1729008625852,-6499.92,0.000292,31]
[340285192,1729008625880,-6499.92,0.000292,31]
[340285193,1729008625907,-6499.92,0.000292,31]
[340285194,1729008625932,-6499.92,0.000292,31]
[340285195,1729008625958,-1298.5,0.00029889,30]
[340285196,1729008625985,-1165.87018057,0.00029999,30]
[340285197,1729008626010,-250.0,0.0003,30]
[340285198,1729008626034,-150.0,0.0003,120]
[340285199,1729008626059,-620.0,0.0003,30]
[340285200,1729008626083,-1800.0,0.0003,31]
[340285201,1729008626108,-500.0,0.0003,30]
[340285202,1729008626131,-500.0,0.0003,30]
[340285203,1729008626155,-500.0,0.0003,30]
[340285204,1729008626179,-500.0,0.0003,30]
[340285205,1729008626203,-500.0,0.0003,30]
[340285206,1729008626227,-500.0,0.0003,30]
[340285207,1729008626252,-500.0,0.0003,30]
[340285208,1729008626277,-3400.0,0.0003,30]
[340285209,1729008626303,-3400.0,0.0003,30]
[340285210,1729008626327,-3400.0,0.0003,30]
[340285211,1729008626351,-3400.0,0.0003,30]
[340285212,1729008626375,-3400.0,0.0003,30]
[340285213,1729008626400,-3400.0,0.0003,30]
[340285214,1729008626425,-3400.0,0.0003,30]
[340285215,1729008626450,-3400.0,0.0003,30]
[340285216,1729008626474,-3400.0,0.0003,30]
[340285217,1729008626497,-3400.0,0.0003,30]
[340285218,1729008626523,-3400.0,0.0003,30]
[340285219,1729008626546,-500.0,0.0003,30]
[340285220,1729008626570,-5200.0,0.0003,30]
[340285221,1729008626593,-500.0,0.0003,30]
[340285222,1729008626616,-500.0,0.0003,30]
[340285223,1729008626640,-500.0,0.0003,30]
[340285224,1729008626663,-500.0,0.0003,30]
[340285225,1729008626687,-500.0,0.0003,30]
[340285226,1729008626710,-500.0,0.0003,30]
[340285227,1729008626734,-500.0,0.0003,30]
[340285228,1729008626759,-500.0,0.0003,30]
[340285229,1729008626784,-500.0,0.0003,30]
[340285230,1729008626815,-500.0,0.0003,30]
[340285231,1729008626839,-500.0,0.0003,30]
[340285232,1729008626863,-500.0,0.0003,30]
[340285233,1729008626887,-500.0,0.0003,30]
[340285234,1729008626911,-500.0,0.0003,30]
[340285235,1729008626936,-500.0,0.0003,30]
[340285236,1729008626961,-500.0,0.0003,30]
[340285237,1729008626984,-500.0,0.0003,30]
[340285238,1729008627009,-500.0,0.0003,30]
[340285239,1729008627033,-500.0,0.0003,30]
[340285240,1729008627059,-500.0,0.0003,30]
[340285241,1729008627083,-500.0,0.0003,30]
[340285242,1729008627107,-500.0,0.0003,30]
[340285243,1729008627131,-600.0,0.0003,30]
[340285244,1729008627155,-500.0,0.0003,30]
[340285245,1729008627179,-500.0,0.0003,30]
[340285246,1729008627204,-500.0,0.0003,30]
[340285247,1729008627230,-500.0,0.0003,30]
[340285248,1729008627255,-500.0,0.0003,30]
[340285249,1729008627280,-500.0,0.0003,30]
[340285250,1729008627305,-500.0,0.0003,30]
[340285251,1729008627329,-500.0,0.0003,30]
[340285252,1729008627353,-500.0,0.0003,30]
[340285253,1729008627378,-500.0,0.0003,30]
[340285254,1729008627402,-500.0,0.0003,30]
[340285255,1729008627427,-500.0,0.0003,30]
[340285256,1729008627451,-500.0,0.0003,30]
[340285257,1729008627475,-2000.0,0.000301,30]
[340285258,1729008627501,-150.0,0.00030556,120]
[340285259,1729008627649,-1800.0,0.00031,32]
[340285260,1729008627678,-6499.92,0.000313,31]
[340285261,1729008627704,-6499.92,0.000313,31]
[340285262,1729008627730,-6499.92,0.000313,31]
[340285263,1729008627755,-6499.92,0.000313,31]
[340285264,1729008627779,-6499.92,0.000313,31]
[340285265,1729008627809,-6499.92,0.000313,31]
[340285266,1729008627834,-6499.92,0.000313,31]
[340285267,1729008627861,-6499.92,0.000313,31]
[340285268,1729008627886,-6499.92,0.000313,31]
[340285269,1729008627911,-6499.92,0.000313,31]
[340285270,1729008627936,-6499.92,0.000313,31]
[340285271,1729008627961,-6499.92,0.000313,31]
[340285272,1729008627986,-6499.92,0.000313,31]
[340285273,1729008628012,-6499.92,0.000313,31]
[340285274,1729008628037,-6499.92,0.000313,31]
[340285275,1729008628065,-6499.92,0.000313,31]
[340285276,1729008628092,-6499.92,0.000313,31]
[340285277,1729008628118,-6499.92,0.000313,31]
[340285278,1729008628143,-6499.92,0.000313,31]
[340285279,1729008628169,-6499.92,0.000313,31]
[340285280,1729008628194,-6499.92,0.000313,31]
[340285281,1729008628220,-6499.92,0.000313,31]
[340285282,1729008628247,-6499.92,0.000313,31]
[340285283,1729008628272,-6499.92,0.000313,31]
[340285284,1729008628297,-176.15158929,0.000314,30]
[340285285,1729008628321,-1032.22,0.000318,90]
[340285286,1729008628346,-150.0,0.0003181,120]
[340285287,1729008628387,-500.0,0.00032,30]
[340285288,1729008628411,-627.49024893,0.00032,30]
[340285289,1729008628445,-500.0,0.00032,30]
[340285290,1729008628486,-500.0,0.00032,30]
[340285291,1729008628529,-500.0,0.00032,30]
[340285292,1729008628568,-500.0,0.00032,30]
[340285293,1729008628608,-500.0,0.00032,30]
[340285294,1729008628646,-500.0,0.00032,30]
[340285295,1729008628687,-500.0,0.00032,30]
[340285296,1729008628721,-500.0,0.00032,30]
[340285297,1729008628758,-500.0,0.00032,30]
[340285298,1729008628796,-500.0,0.00032,30]
[340285299,1729008628830,-505.8020801,0.00032,30]
[340285300,1729008628865,-500.0,0.00032,30]
[340285301,1729008628899,-500.0,0.00032,30]
[340285302,1729008628933,-500.0,0.00032,30]
[340285303,1729008628968,-500.0,0.00032,30]
[340285304,1729008629002,-500.0,0.00032,30]
[340285305,1729008629039,-500.0,0.00032,30]
[340285306,1729008629076,-500.0,0.00032,30]
[340285307,1729008629112,-505.60507085,0.00032,30]
[340285308,1729008629147,-500.0,0.00032,30]
[340285309,1729008629182,-500.0,0.00032,30]
[340285310,1729008629217,-500.0,0.00032,30]
[340285311,1729008629251,-500.0,0.00032,30]
[340285312,1729008629286,-923.66225746,0.00032,30]
[340285313,1729008629320,-500.0,0.00032,30]
[340285314,1729008629354,-500.0,0.00032,30]
[340285315,1729008629388,-500.0,0.00032,30]
[340285316,1729008629422,-500.0,0.00032,30]
[340285317,1729008629456,-500.0,0.00032,30]
[340285318,1729008629491,-500.0,0.00032,30]
[340285319,1729008629525,-500.0,0.00032,30]
[340285320,1729008629562,-500.0,0.00032,30]
[340285321,1729008629597,-500.0,0.00032,30]
[340285322,1729008629782,-500.0,0.00032,30]
[340285323,1729008629814,-500.0,0.00032,30]
[340285324,1729008629839,-500.0,0.00032,30]
[340285325,1729008629866,-500.0,0.00032,30]
[340285326,1729008629891,-500.0,0.00032,30]
[340285327,1729008629914,-500.0,0.00032,30]
[340285328,1729008629938,-500.0,0.00032,30]
[340285329,1729008629963,-500.0,0.00032,30]
[340285330,1729008629988,-500.0,0.00032,30]
[340285331,1729008630013,-500.0,0.00032,30]
[340285332,1729008630037,-500.0,0.00032,30]
[340285333,1729008630064,-500.0,0.00032,30]
[340285334,1729008630087,-500.0,0.00032,30]
[340285335,1729008630111,-500.0,0.00032,30]
[340285336,1729008630135,-500.0,0.00032,30]
[340285337,1729008630159,-799.83177926,0.00032,30]
[340285338,1729008630183,-1893.19361668,0.00032,30]
[340285339,1729008630208,-150.0,0.00032,120]
[340285340,1729008630233,-500.0,0.00032,30]
[340285341,1729008630257,-500.0,0.00032,30]
[340285342,1729008630281,-500.0,0.00032,30]
[340285343,1729008630307,-500.0,0.00032,30]
[340285344,1729008630331,-500.0,0.00032,30]
[340285345,1729008630356,-500.0,0.00032,30]
[340285346,1729008630380,-500.0,0.00032,30]
[340285347,1729008630407,-500.0,0.00032,30]
[340285348,1729008630431,-500.0,0.00032,30]
[340285349,1729008630456,-500.0,0.00032,30]
[340285350,1729008630482,-500.0,0.00032,30]
[340285351,1729008630507,-500.0,0.00032,30]
[340285352,1729008630533,-917.8228108,0.00032,30]
[340285353,1729008630559,-1800.0,0.00032,33]
[340285354,1729008630584,-1298.5,0.00032473,120]
[340285355,1729008630611,-252.75041841,0.00032876,120]
[340285356,1729008630637,-16881.56041957,0.000329,30]
[340285357,1729008630661,-298.85952654,0.00033,120]
[340285358,1729008630685,-1800.0,0.00033,34]
[340285359,1729008630711,-500.0,0.0003322,60]
[340285360,1729008630740,-6499.92,0.000335,31]
[340285361,1729008630767,-6499.92,0.000335,31]
[340285362,1729008630797,-6499.92,0.000335,31]
[340285363,1729008630822,-6499.92,0.000335,31]
[340285364,1729008630848,-6499.92,0.000335,31]
[340285365,1729008630875,-6499.92,0.000335,31]
[340285366,1729008630900,-6499.92,0.000335,31]
[340285367,1729008630925,-6499.92,0.000335,31]
[340285368,1729008630951,-6499.92,0.000335,31]
[340285369,1729008630977,-6499.92,0.000335,31]
[340285370,1729008631005,-6499.92,0.000335,31]
[340285371,1729008631032,-6499.92,0.000335,31]
[340285372,1729008631058,-600.0,0.00033768,60]
[340285373,1729008631083,-900.0,0.00034,35]
[340285374,1729008631108,-2000.0,0.000342,30]
[340285375,1729008631134,-500.0,0.00034316,60]
[340285376,1729008631159,-270.15943984,0.00034849,120]
[340285377,1729008631183,-600.0,0.00034864,60]
[340285378,1729008631209,-1280.0,0.00034874,31]
[340285379,1729008631234,-800.75950541,0.00035,30]
[340285380,1729008631259,-250.0,0.00035,30]
[340285381,1729008631283,-600.0,0.00035,30]
[340285382,1729008631306,-600.0,0.00035,30]
[340285383,1729008631331,-600.0,0.00035,30]
[340285384,1729008631355,-600.0,0.00035,30]
[340285385,1729008631501,-600.0,0.00035,30]
[340285389,1729008631528,-600.0,0.00035,30]
[340285392,1729008631554,-600.0,0.00035,30]
[340285393,1729008631579,-600.0,0.00035,30]
[340285394,1729008631605,-600.0,0.00035,30]
[340285395,1729008631630,-600.0,0.00035,30]
[340285396,1729008631654,-600.0,0.00035,30]
[340285397,1729008631680,-600.0,0.00035,30]
[340285398,1729008631705,-813.55403494,0.00035,30]
[340285399,1729008631730,-500.0,0.00035,30]
[340285400,1729008631754,-528.52278979,0.00035,30]
[340285401,1729008631779,-700.0,0.00035,30]
[340285402,1729008631809,-700.0,0.00035,30]
[340285403,1729008631834,-700.0,0.00035,30]
[340285404,1729008631858,-700.0,0.00035,30]
[340285405,1729008631884,-700.0,0.00035,30]
[340285406,1729008631908,-700.0,0.00035,30]
[340285407,1729008631933,-700.0,0.00035,30]
[340285408,1729008631959,-700.0,0.00035,30]
[340285409,1729008631983,-700.0,0.00035,30]
[340285410,1729008632007,-700.0,0.00035,30]
[340285411,1729008632033,-700.0,0.00035,30]
[340285412,1729008632059,-700.0,0.00035,30]
[340285413,1729008632084,-700.0,0.00035,30]
[340285414,1729008632109,-1199.89505592,0.00035,30]
[340285415,1729008632134,-500.0,0.00035,30]
[340285418,1729008632159,-500.0,0.00035,30]
[340285421,1729008632184,-500.0,0.00035,30]
[340285424,1729008632208,-500.0,0.00035,30]
[340285426,1729008632233,-500.0,0.00035,30]
[340285427,1729008632256,-500.0,0.00035,30]
[340285429,1729008632281,-500.0,0.00035,30]
[340285430,1729008632309,-1400.0,0.00035,30]
[340285431,1729008632334,-500.0,0.00035,30]
[340285432,1729008632358,-1400.0,0.00035,30]
[340285433,1729008632382,-500.0,0.00035,30]
[340285434,1729008632407,-1400.0,0.00035,30]
[340285435,1729008632433,-519.06148576,0.00035,30]
[340285436,1729008632458,-1400.0,0.00035,30]
[340285437,1729008632482,-1400.0,0.00035,30]
[340285438,1729008632508,-1400.0,0.00035,30]
[340285439,1729008632534,-1400.0,0.00035,30]
[340285440,1729008632562,-1400.0,0.00035,30]
[340285441,1729008632587,-1400.0,0.00035,30]
[340285442,1729008632613,-1400.0,0.00035,30]
[340285443,1729008632638,-1400.0,0.00035,30]
[340285444,1729008632664,-1400.0,0.00035,30]
[340285445,1729008632689,-1400.0,0.00035,30]
[340285446,1729008632714,-2337.89567645,0.00035,30]
[340285447,1729008632738,-500.0,0.00035,30]
[340285448,1729008632762,-857.57530256,0.00035,30]
[340285449,1729008632790,-500.0,0.00035,30]
[340285450,1729008632816,-500.0,0.00035,30]
[340285451,1729008632842,-900.0,0.00035,30]
[340285452,1729008632867,-441.65261006,0.00035,60]
[340285453,1729008632893,-151.0,0.00035,120]
[340285454,1729008632918,-150.0,0.00035,60]
[340285455,1729008632944,-900.0,0.00035,36]
[340285456,1729008632970,-1298.5,0.00035057,120]
[340285457,1729008632996,-150.0,0.00035264,120]
[340285458,1729008633022,-500.0,0.00035412,60]
[340285459,1729008633049,-310.066,0.00035585,42]
[340285460,1729008633197,-600.0,0.0003596,60]
[340285461,1729008633224,-900.0,0.00036,37]
[340285462,1729008633249,-568.52096794,0.00036,120]
[340285463,1729008633275,-500.0,0.00036,120]
[340285464,1729008633302,-2411.38230671,0.00036,120]
[340285465,1729008633328,-150.0,0.00036,60]
[340285466,1729008633353,-500.0,0.00036508,60]
[340285467,1729008633380,-178.021224,0.00037,30]
[340285468,1729008633406,-900.0,0.00037,38]
[340285469,1729008633432,-652.95458715,0.00037,30]
[340285470,1729008633457,-600.0,0.00037,30]
[340285471,1729008633482,-600.0,0.00037,30]
[340285472,1729008633507,-600.0,0.00037,30]
[340285473,1729008633532,-600.0,0.00037,30]
[340285474,1729008633564,-600.0,0.00037,30]
[340285475,1729008633589,-600.0,0.00037,30]
[340285476,1729008633614,-600.0,0.00037,30]
[340285477,1729008633640,-600.0,0.00037,30]
[340285478,1729008633666,-600.0,0.00037,30]
[340285479,1729008633692,-600.0,0.00037,30]
[340285480,1729008633717,-600.0,0.00037,30]
[340285481,1729008633741,-600.0,0.00037,30]
[340285482,1729008633766,-600.0,0.00037,30]
[340285483,1729008633791,-700.0,0.00037,30]
[340285484,1729008633820,-700.0,0.00037,30]
[340285485,1729008633846,-700.0,0.00037,30]
[340285486,1729008633872,-700.0,0.00037,30]
[340285487,1729008633897,-700.0,0.00037,30]
[340285488,1729008633921,-700.0,0.00037,30]
[340285489,1729008633946,-700.0,0.00037,30]
[340285490,1729008633971,-700.0,0.00037,30]
[340285491,1729008633996,-700.0,0.00037,30]
[340285492,1729008634021,-700.0,0.00037,30]
[340285493,1729008634045,-500.0,0.00037,30]
[340285494,1729008634073,-700.0,0.00037,30]
[340285495,1729008634098,-500.0,0.00037,30]
[340285496,1729008634122,-700.0,0.00037,30]
[340285497,1729008634147,-700.0,0.00037,30]
[340285498,1729008634171,-700.0,0.00037,30]
[340285499,1729008634196,-500.0,0.00037,30]
[340285500,1729008634222,-500.0,0.00037,30]
[340285501,1729008634249,-1400.0,0.00037,30]
[340285502,1729008634274,-500.0,0.00037,30]
[340285503,1729008634299,-1400.0,0.00037,30]
[340285504,1729008634327,-500.0,0.00037,30]
[340285505,1729008634352,-1400.0,0.00037,30]
[340285506,1729008634378,-500.0,0.00037,30]
[340285507,1729008634403,-1400.0,0.00037,30]
[340285508,1729008634427,-500.0,0.00037,30]
[340285509,1729008634452,-1400.0,0.00037,30]
[340285510,1729008634476,-500.0,0.00037,30]
[340285511,1729008634502,-1400.0,0.00037,30]
[340285512,1729008634526,-500.0,0.00037,30]
[340285513,1729008634555,-1400.0,0.00037,30]
[340285514,1729008634580,-500.0,0.00037,30]
[340285515,1729008634606,-1400.0,0.00037,30]
[340285516,1729008634630,-500.0,0.00037,30]
[340285517,1729008634657,-1400.0,0.00037,30]
[340285518,1729008634684,-1400.0,0.00037,30]
[340285519,1729008634710,-1400.0,0.00037,30]
[340285520,1729008634851,-1400.0,0.00037,30]
[340285521,1729008634879,-1400.0,0.00037,30]
[340285522,1729008634904,-1400.0,0.00037,30]
[340285523,1729008634930,-553.39657311,0.00037,30]
[340285524,1729008634957,-500.0,0.00037,30]
[340285525,1729008634982,-500.0,0.00037,30]
[340285526,1729008635008,-500.0,0.00037,30]
[340285527,1729008635033,-500.0,0.00037,30]
[340285528,1729008635062,-500.0,0.00037,30]
[340285529,1729008635088,-500.0,0.00037,30]
[340285530,1729008635113,-500.0,0.00037,30]
[340285531,1729008635138,-2083.0,0.00037,117]
[340285532,1729008635163,-150.0,0.00037,60]
[340285533,1729008635188,-600.0,0.00037056,60]
[340285534,1729008635213,-150.0,0.00037218,120]
[340285535,1729008635238,-1000.0,0.0003726,30]
[340285536,1729008635264,-8200.0,0.000375,120]
[340285537,1729008635290,-362.17325282,0.00037604,60]
[340285538,1729008635319,-1298.5,0.00037641,120]
[340285539,1729008635344,-900.0,0.00038,39]
[340285540,1729008635369,-620.873263,0.00038,120]
[340285541,1729008635394,-519.75774089,0.00038,120]
[340285542,1729008635419,-500.0,0.00038,120]
[340285543,1729008635444,-756.0,0.00038,120]
[340285544,1729008635468,-243.95,0.00038,30]
[340285545,1729008635493,-172.963823,0.00038,60]
[340285546,1729008635517,-578.93954808,0.00038152,60]
[340285547,1729008635543,-156.88570515,0.00038356,30]
[340285548,1729008635571,-2000.0,0.000384,30]
[340285549,1729008635617,-1000.0,0.00038493,120]
[340285550,1729008635665,-826.55058781,0.000385,120]
[340285551,1729008635707,-156.88570515,0.00038548,30]
[340285552,1729008635751,-194.45834592,0.00038646,40]
[340285553,1729008635798,-193.66911118,0.00038646,40]
[340285554,1729008635843,-202.65052019,0.00038646,40]
[340285555,1729008635883,-527.30444487,0.00038646,40]